Cogmind - Beta 13 X1 @@@ ROGUE MODE // 2023.07.30 @ 12:36:21 Player: WayneKnight Result: Self-destructed Performance ------------- Evolutions (2) 1000 Regions Visited (5) 1000 Robots Destroyed (50) 250 Value Destroyed (1271) 1271 Prototype IDs (2) 40 Alien Tech Used (0) 0 Bonus (140) 140 TOTAL SCORE: 3701 Bonus ------- High Alert Combat Kills 16 Follower Combat Kills 124 Cogmind --------- Core Integrity 530/550 Matter 217/300 Energy 265/265 System Corruption 0% Temperature Cool (57) Movement Treading (160) Location -8/Materials Parts ------- > --- POWER (1) -------- Improved Ion Engine > --- PROPULSION (3) --- Light Treads Light Treads Improved Treads > --- UTILITY (5) ------ Large Storage Unit Light Armor Plating Light Armor Plating Light Armor Plating > --- WEAPON (2) ------- Heavy Assault Rifle Heavy Assault Rifle > --- INVENTORY (15) --- Light Treads Light Treads Light Treads Wheel Large Storage Unit Beam Rifle Beam Rifle Light Assault Rifle Light Assault Rifle Light Assault Rifle Light Assault Rifle Light Assault Rifle Light Assault Rifle Rocket Launcher Missile Launcher Peak State ------------ > --- POWER ------------ Improved Ion Engine > --- PROPULSION ------- Light Treads Light Treads Improved Treads > --- UTILITY ---------- Large Storage Unit Light Armor Plating Light Armor Plating Light Armor Plating Light Armor Plating > --- WEAPON ----------- Heavy Assault Rifle Heavy Assault Rifle > --- INVENTORY -------- Light Treads Light Treads Light Treads Wheel Large Storage Unit Beam Rifle Beam Rifle Light Assault Rifle Light Assault Rifle Light Assault Rifle Light Assault Rifle Light Assault Rifle Light Assault Rifle Rocket Launcher Missile Launcher [Rating: 17] Favorites ----------- Power Ion Engine Engine Ion Engine Propulsion Light Treads Treads Light Treads Leg Aluminum Leg Wheel Wheel Utility Light Armor Plating Storage Large Storage Unit Processor Targeting Computer Protection Light Armor Plating Weapon Assault Rifle Energy Gun Medium Laser Ballistic Gun Assault Rifle Launcher Grenade Launcher Build | -11 -10 -10 -10 -9 -8 ------- Run | Jun Mat Min Exi Min Mat Slots Evolved 4 | . . . . . 4 Power . | . . . . . . Propulsion 1 | . . . . . 1 Utility 3 | . . . . . 3 Weapon . | . . . . . . Parts Attached 37 | 2 16 6 1 6 6 Power 4 | . 2 1 . 1 . Engine 4 | . 2 1 . 1 . Core . | . . . . . . Reactor . | . . . . . . Propulsion 11 | 2 5 . . 2 2 Treads 9 | 1 4 . . 2 2 Leg . | . . . . . . Wheel 2 | 1 1 . . . . Hover . | . . . . . . Flight . | . . . . . . Utility 10 | . 4 1 1 1 3 Device . | . . . . . . Storage 3 | . 2 . 1 . . Processor 1 | . 1 . . . . Hackware . | . . . . . . Protection 6 | . 1 1 . 1 3 Artifact . | . . . . . . Weapon 12 | . 5 4 . 2 1 Energy Gun 2 | . . 2 . . . Energy Cannon . | . . . . . . Ballistic Gun 7 | . 3 2 . 1 1 Ballistic Cannon . | . . . . . . Launcher 3 | . 2 . . 1 . Special Weapon . | . . . . . . Impact Weapon . | . . . . . . Slashing Weapon . | . . . . . . Piercing Weapon . | . . . . . . Special Melee Weapon . | . . . . . . Unidentified Prototypes . | . . . . . . Parts Lost 8 | . 2 2 . 3 1 Power 2 | . 1 . . 1 . Propulsion 2 | . 1 . . 1 . Utility 2 | . . . . 1 1 Weapon 2 | . . 2 . . . Highest Loss Streak 2 | . 1 2 . 1 1 To Critical Strikes . | . . . . . . Average Slot Usage (%) 99 | . 99 99 100 99 100 Engine 13 | . 14 14 14 14 9 Treads 27 | . 27 28 28 28 27 Storage 16 | . 23 14 14 14 9 Processor 4 | . 1 10 . . . Protection 9 | . 2 3 14 13 36 Energy Gun 8 | . 12 4 14 14 3 Ballistic Gun 17 | . 15 23 14 14 14 Naked Turns . | . . . . . . Heaviest Build 45 | 12 30 34 34 36 45 Greatest Support 63 | 20 40 40 40 43 63 Greatest Overweight (x) 2 | 1 2 . . . . Average Overweight (x) . | . . . . . . Largest Inventory Capacity 15 | 8 15 15 15 15 15 Average Capacity 13 | 8 10 15 15 15 15 Most Carried 15 | 6 13 15 15 15 15 Average Carried 11 | 6 8 11 15 14 13 Final Capacity 15 | 8 15 15 15 15 15 Final Carried 15 | 6 11 15 15 14 15 Class Distribution -------------------- 69% | Mutant 30% | Scavenger-Mutant Dominant Class ---------------- Mutant | -10/Materials Mutant | -10/Mines Scavenger-Mutant | -10/Exiles Mutant | -9/Mines Scavenger-Mutant | -8/Materials Resources | -11 -10 -10 -10 -9 -8 ----------- Run | Jun Mat Min Exi Min Mat Matter Collected 984 | 212 294 198 . 170 110 Remotely . | . . . . . . Salvage Created 1546 | 108 744 63 . 478 153 Parts 92 | 3 37 5 . 31 16 Haulers Intercepted 1 | . 1 . . . . Recyclers Shooed . | . . . . . . Parts Field Recycled . | . . . . . . Retrieved Matter . | . . . . . . Parts Self-Destructed . | . . . . . . Prevented . | . . . . . . Kills | -11 -10 -10 -10 -9 -8 ------- Run | Jun Mat Min Exi Min Mat Combat Hostiles Destroyed 43 | . 17 4 . 16 6 Melee 1 | . 1 . . . . Guns 36 | . 12 4 . 14 6 AOE 6 | . 4 . . 2 . Classes Destroyed 9 | 2 3 2 . 1 1 Worker 1 | . . . . 1 . Tunneler 1 | 1 . . . . . Hauler 1 | . 1 . . . . Recycler 1 | 1 . . . . . Watcher 3 | . 3 . . . . Swarmer 15 | . . 3 . 8 4 Grunt 26 | . 17 . . 8 1 Sentry 1 | . . . . . 1 Demolisher 1 | . . 1 . . . Best Kill Streak 4 | 2 3 3 . 4 4 Combat Bots Only 4 | . 3 3 . 4 4 Max Kills in Single Turn 2 | 1 2 1 . 2 1 Gunslinging . | . . . . . . Exploded 2 | . 2 . . 2 . Melee 1 | . 1 . . . . Uniques/NPCs Destroyed . | . . . . . . Combat | -11 -10 -10 -10 -9 -8 -------- Run | Jun Mat Min Exi Min Mat Damage Taken 1620 | . 639 331 . 374 276 Core 176 | . 69 49 . 38 20 Absorbed by Shields . | . . . . . . Regen/Repaired (Parts) 122 | . 122 . . . . Core Remaining (%) 68 | 100 . . . 37 . Volleys Fired 142 | 4 58 16 . 36 28 Largest 2 | 2 2 2 . 2 2 Hottest 79 | 70 70 70 . 79 79 Shots Fired 279 | 8 113 31 . 71 56 Gun 275 | 8 110 31 . 70 56 Cannon . | . . . . . . Launcher 4 | . 3 . . 1 . Special . | . . . . . . Kinetic 181 | 4 71 25 . 35 46 Thermal 94 | 4 39 6 . 35 10 Explosive 4 | . 3 . . 1 . Electromagnetic . | . . . . . . Robot Hit Streak 16 | 4 16 4 . 9 6 Robot Miss Streak 7 | 2 2 3 . 4 7 Penetration Max . | . . . . . . Secondary Targets 1 | . . 1 . . . Max Gunslinging Chain 1 | . . 1 . . . Shots Hit Robots 169 | 5 84 15 . 33 32 Core Hits 78 | 3 38 7 . 17 13 Critical Kills 2 | 1 . 1 . . . Critical Parts Destroyed . | . . . . . . Critical Strikes 8 | 1 2 1 . 4 . Burn 6 | . 2 . . 4 . Destroy 2 | 1 . 1 . . . Melee Attacks . | . . . . . . Impact . | . . . . . . Slashing . | . . . . . . Piercing . | . . . . . . Sneak Attacks . | . . . . . . Combat Hostiles . | . . . . . . Follow-up Attacks . | . . . . . . Damage Inflicted 2730 | 62 1319 169 . 668 512 Guns 2353 | 62 1092 158 . 529 512 Cannons . | . . . . . . Explosions 332 | . 222 . . 110 . Melee . | . . . . . . Ramming 45 | . 5 11 . 29 . Kinetic 1515 | 36 687 121 . 275 396 Thermal 838 | 26 405 37 . 254 116 Explosive 332 | . 222 . . 110 . Electromagnetic . | . . . . . . Impact . | . . . . . . Slashing . | . . . . . . Piercing . | . . . . . . Highest Corruption . | . . . . . . Average Corruption . | . . . . . . Corruption Purged . | . . . . . . Corruption Blocked . | . . . . . . Overload Shots . | . . . . . . Overflow Damage 4 | . 4 . . . . Projectiles . | . . . . . . Explosions 4 | . 4 . . . . Melee . | . . . . . . Knockbacks . | . . . . . . Impact . | . . . . . . Kinetic . | . . . . . . Secondary . | . . . . . . Self-Inflicted Damage 6 | . . . . 6 . Shots 1 | . . . . 1 . Rammed 12 | . 4 4 . 4 . Targets Rammed 13 | . 5 4 . 4 . Kicked . | . . . . . . Crushed 1 | . 1 . . . . Highest Temperature 332 | 27 90 103 . 332 234 Average Temperature 62 | 13 34 35 . 91 66 Received Heat Transfer 519 | . 357 9 . 54 99 Siege Activations . | . . . . . . Robots Corrupted . | . . . . . . Combat Hostiles . | . . . . . . Parts Fried . | . . . . . . Impact Corruptions . | . . . . . . Robots Melted . | . . . . . . Combat Hostiles . | . . . . . . Parts Melted 11 | . 4 1 . 6 . Heat Transferred 2738 | 74 1332 111 . 925 296 Parts Sabotaged . | . . . . . . Parts Stolen . | . . . . . . Parts Stripped . | . . . . . . Power Chain Reactions . | . . . . . . Missiles Intercepted . | . . . . . . Alert | -11 -10 -10 -10 -9 -8 ------- Run | Jun Mat Min Exi Min Mat Peak Influence 433 | 10 433 168 . 161 167 Initial 168 | . 6 168 . . 21 Average 55 | 8 77 36 . 64 35 Maximum Alert Level 2 | . 2 . . . . Low Security (%) 93 | 100 80 100 . 100 100 Level 1 6 | . 17 . . . . Level 2 . | . 1 . . . . Level 3 . | . . . . . . Level 4 . | . . . . . . Level 5 . | . . . . . . High Security . | . . . . . . Max Security . | . . . . . . Squads Dispatched 12 | . 8 . . . 4 Investigation 5 | . 4 . . . 1 Extermination . | . . . . . . Reinforcement 6 | . 4 . . . 2 Assault . | . . . . . . Garrison 1 | . . . . . 1 Intercept . | . . . . . . Searches Triggered . | . . . . . . Construction Impeded . | . . . . . . Haulers Reinforced . | . . . . . . Active Scanning Responses . | . . . . . . Cargo Convoy Interrupts . | . . . . . . Stealth | -11 -10 -10 -10 -9 -8 --------- Run | Jun Mat Min Exi Min Mat Distress Signals 2 | . 2 . . . . Communications Jammed . | . . . . . . Distress Signals . | . . . . . . Times Spotted 66 | . 26 6 . 20 14 Peak Tracking Total 4 | . 3 3 . 4 4 Tactical Retreats 7 | . 3 . . 2 2 Traps | -11 -10 -10 -10 -9 -8 ------- Run | Jun Mat Min Exi Min Mat Traps Triggered 4 | . 3 . . . 1 Indirectly . | . . . . . . Trap Hack Attempts . | . . . . . . Triggered . | . . . . . . Disarmed . | . . . . . . Reprogrammed . | . . . . . . Reused . | . . . . . . Traps Extracted . | . . . . . . Installed . | . . . . . . Triggered . | . . . . . . Machines | -11 -10 -10 -10 -9 -8 ---------- Run | Jun Mat Min Exi Min Mat Machines Disabled 1 | . . . . . 1 Max in Single Turn 1 | . . . . . 1 Machines Repaired . | . . . . . . Machines Sabotaged . | . . . . . . Overloaded Fab Kills . | . . . . . . Hacking | -11 -10 -10 -10 -9 -8 --------- Run | Jun Mat Min Exi Min Mat Machines Accessed 7 | . 5 . 1 . 1 Terminals 5 | . 4 . . . 1 Fabricators . | . . . . . . Repair Stations 1 | . 1 . . . . Recycling Units . | . . . . . . Scanalyzers . | . . . . . . Garrison Access . | . . . . . . Total Hacks 19 | . 16 . 1 . 2 Successful 11 | . 9 . 1 . 1 Failed 7 | . 6 . . . 1 Catastrophic 3 | . 2 . . . 1 Database Lockouts 1 | . 1 . . . . Manual 11 | . 9 . . . 2 Terminals 15 | . 13 . . . 2 Fabricators . | . . . . . . Repair Stations 3 | . 3 . . . . Recycling Units . | . . . . . . Scanalyzers . | . . . . . . Garrison Access . | . . . . . . Terminal Hacks 6 | . 5 . 1 . . Record 3 | . 2 . 1 . . Robot Analysis 1 | . 1 . . . . Prototype ID Bank 1 | . 1 . . . . Locate Traps 1 | . 1 . . . . Fabricator Hacks . | . . . . . . Repair Station Hacks 2 | . 2 . . . . Scan Component 1 | . 1 . . . . Repair 1 | . 1 . . . . Recycling Unit Hacks . | . . . . . . Scanalyzer . | . . . . . . Garrison Access Hacks . | . . . . . . Unauthorized Hacks 3 | . 2 . . . 1 Terminals 3 | . 2 . . . 1 Botnet 3 | . 2 . . . 1 Fabricators . | . . . . . . Repair Stations . | . . . . . . Recycling Units . | . . . . . . Scanalyzers . | . . . . . . Garrison Access . | . . . . . . Data Cores Recovered . | . . . . . . Used . | . . . . . . Hacking Detections 6 | . 5 . . . 1 Full Trace Events 1 | . 1 . . . . Feedback Events . | . . . . . . Feedback Blocked . | . . . . . . Robot Schematics Acquired . | . . . . . . Robots Built . | . . . . . . Authchips . | . . . . . . Time . | . . . . . . Total Robot Build Rating . | . . . . . . Part Schematics Acquired . | . . . . . . Parts Built . | . . . . . . Authchips . | . . . . . . Time . | . . . . . . Total Part Build Rating . | . . . . . . Parts Repaired 1 | . 1 . . . . Time 26 | . 26 . . . . Parts Recycled . | . . . . . . Recycled Matter . | . . . . . . Retrieved Matter . | . . . . . . Retrieved Components . | . . . . . . Parts Scanalyzed . | . . . . . . Part Schematics Acquired . | . . . . . . Parts Damaged . | . . . . . . Bothacking | -11 -10 -10 -10 -9 -8 ------------ Run | Jun Mat Min Exi Min Mat Used RIF Installer . | . . . . . . Robots Hacked . | . . . . . . Non-combat . | . . . . . . Combat . | . . . . . . Robot Hacks Applied . | . . . . . . Relay Couplers Released . | . . . . . . Fabnet Peak Effective % . | . . . . . . Robots Rewired . | . . . . . . Allies Hacked . | . . . . . . Hacks Repelled . | . . . . . . Allies | -11 -10 -10 -10 -9 -8 -------- Run | Jun Mat Min Exi Min Mat Total Allies 5 | . . 3 . 2 . Largest Group 3 | . . 3 1 2 1 Highest-Rated Group 43 | . . 40 16 43 12 Highest-Rated Ally 31 | . . 16 16 31 12 Total Orders . | . . . . . . Ally Attacks 30 | . . 22 . 8 . Total Damage 312 | . . 181 . 131 . Kills 6 | . . 4 . 2 . Allies Corrupted . | . . . . . . Allies Melted . | . . . . . . Intel | -11 -10 -10 -10 -9 -8 ------- Run | Jun Mat Min Exi Min Mat Robot Analysis Total 1 | . 1 . . . . Derelict Logs Recovered 2 | . . 1 . 1 . Drone Launches . | . . . . . . Drone Recoveries . | . . . . . . Exploration | -11 -10 -10 -10 -9 -8 ------------- Run | Jun Mat Min Exi Min Mat Turns Passed 8557 | 44 2951 2930 264 1370 998 Spaces Moved 2161 | 25 457 664 165 560 290 Core . | . . . . . . Treads 2041 | . 362 664 165 560 290 Legs 22 | 22 . . . . . Wheels 98 | 3 95 . . . . Hover . | . . . . . . Flight . | . . . . . . Fastest Speed 95 | 95 95 160 160 160 160 Average Speed 156 | 117 147 160 160 160 160 Slowest Speed 160 | 120 160 160 160 160 160 Overloaded Moves . | . . . . . . Propulsion Burnouts . | . . . . . . Robots Hopped . | . . . . . . Cave-ins Triggered . | . . . . . . Exploration Rate (%) 61 | 3 94 100 54 99 20 Regions Visited 5 Branch Regions 3 Pre-discovered Areas 1 | . . . 1 . . Known Exits Taken . | . . . . . . Unknown Exits Taken 5 | 1 1 1 1 1 . Scrap Searched 4 | . . 2 . 2 . Spaces Dug . | . . . . . . Terrain Destroyed 18 | . 10 . . 8 . Melee . | . . . . . . Projectile . | . . . . . . AOE 18 | . 10 . . 8 . Terrain Rammed . | . . . . . . Walls Destroyed . | . . . . . . Machines Disabled . | . . . . . . Actions | -11 -10 -10 -10 -9 -8 --------- Run | Jun Mat Min Exi Min Mat Total 7040 | 30 2611 2503 166 961 769 Wait 4655 | . 2067 1798 . 351 439 Move 2156 | 24 456 663 164 559 290 Hop . | . . . . . . Pick Up 22 | . 6 9 . 3 4 Fast Attach 6 | . 3 2 . . 1 Attach 11 | . 2 2 . 3 4 Detach 3 | . 1 1 . . 1 Swap 20 | 2 11 2 1 3 1 Drop 12 | . 2 6 1 2 1 Fire 142 | 4 58 16 . 36 28 Melee . | . . . . . . Ram . | . . . . . . Kick . | . . . . . . Crush 13 | . 5 4 . 4 . Escape Stasis . | . . . . . . Rewire . | . . . . . . Trap . | . . . . . . Miscellaneous . | . . . . . . Route ------- -11/Junkyard -10/Materials (discovered 5 exits: [*Mat x3] / [*Min x2]) -10/Mines (discovered 4 exits: [*Mat x2] / *Exi / [*Sub]) -10/Exiles -9/Mines (discovered 2 exits: *Mat x2) -8/Materials (discovered 1 exit: Sto) History --------- Turn | Location | Event 14 | -11/Junkyard | Discovered new exit (range 3) 45 | -11/Junkyard | Entered Materials 92 | -10/Materials | Discovered new exit (range 8) 317 | -10/Materials | Build established: Mutant 2119 | -10/Materials | Discovered new exit (range 16) 2399 | -10/Materials | Central database locked down 2583 | -10/Materials | Discovered new exit (range 8) 2719 | -10/Materials | Discovered new exit (range 14) 2882 | -10/Materials | Discovered new exit (range 13) 2938 | -10/Materials | Repaired Lgt. Treads 2996 | -10/Materials | Entered Mines 3006 | -10/Mines | Deemed a non-threat by the Exiles lab entrance 3006 | -10/Mines | Discovered new exit (range 5) 3124 | -10/Mines | Assembled infested the area 3129 | -10/Mines | Assisted by a Guerilla fighting off Assembled 4834 | -10/Mines | Discovered new exit (range 6) 5113 | -10/Mines | Discovered new exit (range 5) 5172 | -10/Mines | Joined a pair of Derelicts in attacking an 0b10 outpost 5432 | -10/Mines | Assisted by bots powering up and referring to "LRC-V3" 5502 | -10/Mines | Build established: Scavenger-Mutant 5682 | -10/Mines | Discovered new exit (range 8) 5687 | -10/Mines | Learned 2 Materials zone layouts 5926 | -10/Mines | Entered Exiles 5926 | -10/Exiles | Accompanied by 1 ally 5963 | -10/Exiles | Met 8R-AWN 5992 | -10/Exiles | Met EX-HEX 6101 | -10/Exiles | Met EX-DEC 6126 | -10/Exiles | Learned location of Zion (-7) 6171 | -10/Exiles | Discovered new exit (range 14) 6190 | -10/Exiles | Entered Mines 6190 | -9/Mines | Accompanied by 1 ally 6438 | -9/Mines | Excavation squad dispatched 6438 | -9/Mines | A large section of the Mines collapsed 6688 | -9/Mines | Excavation squad dispatched 6909 | -9/Mines | Core integrity fell below 50% 6938 | -9/Mines | Excavation squad dispatched 7037 | -9/Mines | Discovered new exit (range 10) 7125 | -9/Mines | Build established: Mutant 7136 | -9/Mines | Discovered new exit (range 8) 7171 | -9/Mines | Learned 4 Materials zone layouts 7209 | -9/Mines | Received a Rocket Launcher from a helpful Derelict 7560 | -9/Mines | Entered Materials 7560 | -8/Materials | Accompanied by 1 ally 7560 | -8/Materials | Evolved 4 slots: Propulsion x1, Utility x3 7561 | -8/Materials | Identified exit to Storage 7869 | -8/Materials | Build established: Scavenger-Mutant 8555 | -8/Materials | Garrison activated, responded to threat 8558 | -8/Materials | Self-destructed Last Messages --------------- Terminal linked with 0 systems. Awaiting botnet instructions. 07935_ Dropped Grenade Launcher. 07935_ Acquired Missile Launcher. 07988_ Material Processor disabled. 08041_ K-01 Serf collects debris. 08400_ ALERT: Hostiles spotted, dispatching reinforcements to Terminal M002. 08417_ K-01 Serf collects debris. 08456_ Acquired 30 matter. 08525_ Triggered Alarm Trap. 08525_ An alarm sounds. 08525_ ALERT: Alarm triggered, dispatching investigation squad. 08534_ G-47 Trooper destroyed. 08552_ Destroyed Lgt. Nuclear Core. 08555_ G-47 Trooper calls for garrison reinforcements. 08555_ ALERT: Activating Garrison Access M001. 08557_ Lgt. Armor Plating destroyed. 08558_ ALERT: Hostiles spotted, dispatching reinforcements to Terminal M008. Map ----- +----------------------------------------------------+ | ??????????# # # ?????# | | ??????????# # """# ?????# | | ??????????# + """# ?????# | | ??????????# # """# ?????# | | ??????????# # # ?????# | | ??????????# # # ?????# | | ??????????# ####+############ | | ??????????# #??# #???# | | ??????????# #??# ##### | | ??????????# #??# | | ??????????# #??########+##### | | ??????????# #??# ### #### | | ??????????# #?## ! =! """ " #?# #??? | | ??????????# #?# =! """ T #?# #??? | | ########### #?## ! """ " ### #??? | | # ! # #??# + #??? | | # # h#??##################??? | | # # #???## ????????????? | | # + #???# ????????????? | | # """ """ # #???## ????????????? | | # """ """ ###u#????# ????????????? | | # """ """ #?# #????# ????????????? | | # #?# #????# "????????????? | | ??#########?# #??????????????????????? | | ????????????# #??????????????????????? | | ????????????#@#??????????????????????? | | ????????????# #??????????????????????? | | ????????????# #??????????????????????? | | ????????????# #??????????????????????? | | ????????????# #??????????????????????? | | ????????????#g#??????????????????????? | | ????????????#Y#??????????????????????? | | ????????????# ??????????????????????? | | ????????????# ??????????????????????? | | ????????????+ ??????????????????????? | | ????????????# ??????????????????????? | | ????????????# #?????????????????????? | | ???????????? #?????????????????????? | | ????????????=%*#?????????????????????? | | ????????????+###?????????????????????? | | ???????????? ????????????????????????? | | ???????????? ????????????????????????? | | ????????????"????????????????????????? | | ????????????G????????????????????????? | | ?????????????????????????????????????? | | ?????????????????????????????????????? | | ?????????????????????????????????????? | | ?????????????????????????????????????? | | | | | +----------------------------------------------------+ Best States ------------- Heat Dissipation 31 Energy Generation 14 Energy Capacity 265 Matter Stores 300 Matter Capacity 300 Sight Range 16 Terrain Scan Density 10 Armor Coverage 600 Utility Shielding 33 Evasion (%) 55 Targeting Accuracy 5 Recoil Reduction 3 Item Schematics ----------------- None Robot Schematics ------------------ None Fabricated ------------ Nothing Alien Tech Used ----------------- None Achievements -------------- None Challenges ------------ None Game ------ Seed ExplosiveSniperWarhead Manual? 0 Play Time 00:23:57 Cumulative 65.8 hours Start 2023.07.30 @ 12:14:37 End 2023.07.30 @ 12:36:21 Sessions 1 Manual Loads 0 Difficulty Rogue Special Mode None Game No. 59 Rogue 59 Adventurer 0 Explorer 0 Win Type - Total 1 Types 0/0/1/0/0/0/0/0/0 Lore% 39 Gallery% 40 Achievement% 52 Wizard Run 0 Options --------- ASCII 1 Keyboard 1 Movement Arrows Keybinds 0 Fullscreen 2 Font 24/Proggy Map View 76x50 Tactical HUD 1 Map Filters NONE Filters NONE Steam 1 RUN: a3f8c194-027f-475a-9b50-d407d0103dcc